[Event "Early-Titled-Tuesday-Blitz-June-18-2024"]
[Site "Chess.com"]
[Date "2024.06.18"]
[Round "11"]
[White "monomita"]
[Black "Lion-Al-Messi"]
[Result "0-1"]
[WhiteElo "2787"]
[BlackElo "2658"]
[TimeControl "180+1"]
[EndTime "10:08:25 PDT"]
[Termination "Lion-Al-Messi won by resignation"]

1. d4 {[%clk 0:03:00.6]} 1... Nf6 {[%clk 0:02:59.3]} 2. Nc3 {[%clk 0:03:00.3]}
2... d5 {[%clk 0:02:58.6]} 3. Bf4 {[%clk 0:03:00.6]} 3... a6 {[%clk 0:02:58]} 4.
e3 {[%clk 0:03:00.8]} 4... e6 {[%clk 0:02:57.6]} 5. g4 {[%clk 0:03:00.9]} 5...
Bb4 {[%clk 0:02:53.7]} 6. Ne2 {[%clk 0:02:59.1]} 6... O-O {[%clk 0:02:50.2]} 7.
g5 {[%clk 0:02:57.7]} 7... Nh5 {[%clk 0:02:50.4]} 8. h4 {[%clk 0:02:52.2]} 8...
Nxf4 {[%clk 0:02:48.5]} 9. Nxf4 {[%clk 0:02:50.7]} 9... c5 {[%clk 0:02:46.6]}
10. dxc5 {[%clk 0:02:50.6]} 10... Bxc3+ {[%clk 0:02:42.5]} 11. bxc3 {[%clk
0:02:50.3]} 11... Qa5 {[%clk 0:02:42.7]} 12. Qd2 {[%clk 0:02:50]} 12... Nc6
{[%clk 0:02:37.9]} 13. c4 {[%clk 0:02:46.9]} 13... Qxc5 {[%clk 0:02:22.6]} 14.
cxd5 {[%clk 0:02:44]} 14... exd5 {[%clk 0:02:23.5]} 15. Bg2 {[%clk 0:02:37]}
15... Bf5 {[%clk 0:02:20.3]} 16. O-O {[%clk 0:02:36.1]} 16... Rad8 {[%clk
0:02:19.3]} 17. c3 {[%clk 0:02:29.1]} 17... Be4 {[%clk 0:02:16.4]} 18. Rfd1
{[%clk 0:02:24]} 18... Rfe8 {[%clk 0:01:55.4]} 19. Bxe4 {[%clk 0:02:10.5]} 19...
dxe4 {[%clk 0:01:54.2]} 20. Qc2 {[%clk 0:02:03.7]} 20... Qf5 {[%clk 0:01:47]}
21. Rxd8 {[%clk 0:01:43.8]} 21... Rxd8 {[%clk 0:01:46.7]} 22. f3 {[%clk
0:01:44.4]} 22... Qc5 {[%clk 0:01:28.6]} 23. Qxe4 {[%clk 0:01:43.6]} 23... Qxc3
{[%clk 0:01:23.5]} 24. Rf1 {[%clk 0:01:42.6]} 24... Qb2 {[%clk 0:01:11.3]} 25.
Qb1 {[%clk 0:01:22.4]} 25... Qe5 {[%clk 0:01:05.9]} 26. Re1 {[%clk 0:01:10.6]}
26... g6 {[%clk 0:00:55.3]} 27. Qxb7 {[%clk 0:01:07.8]} 27... Nd4 {[%clk
0:00:49.4]} 28. Kf2 {[%clk 0:00:55.9]} 28... Nf5 {[%clk 0:00:38.7]} 29. Qe4
{[%clk 0:00:37.1]} 29... Qa5 {[%clk 0:00:35.5]} 30. Re2 {[%clk 0:00:33.7]} 30...
Qb5 {[%clk 0:00:26.5]} 31. h5 {[%clk 0:00:30.6]} 31... Re8 {[%clk 0:00:26.7]}
32. Qd3 {[%clk 0:00:28.1]} 32... Qe5 {[%clk 0:00:21.7]} 33. hxg6 {[%clk
0:00:26.3]} 33... hxg6 {[%clk 0:00:21.1]} 34. Qd5 {[%clk 0:00:26.2]} 34... Qe7
{[%clk 0:00:18.7]} 35. Qc6 {[%clk 0:00:06.1]} 35... Rd8 {[%clk 0:00:14.6]} 36.
Nh3 {[%clk 0:00:04.3]} 36... Rd2 {[%clk 0:00:11.3]} 37. Qc8+ {[%clk 0:00:03.3]}
37... Kh7 {[%clk 0:00:11.3]} 38. Rxd2 {[%clk 0:00:03.1]} 38... Qxe3+ {[%clk
0:00:11.4]} 39. Kg2 {[%clk 0:00:03.2]} 39... Qxd2+ {[%clk 0:00:10.8]} 40. Kg1
{[%clk 0:00:03.9]} 40... Qe1+ {[%clk 0:00:08.8]} 41. Kg2 {[%clk 0:00:02.6]}
41... Qg3+ {[%clk 0:00:08.7]} 0-1

[Event "Early-Titled-Tuesday-Blitz-June-18-2024"]
[Site "Chess.com"]
[Date "2024.06.18"]
[Round "11"]
[White "AnishOnYoutube"]
[Black "MagnusCarlsen"]
[Result "0-1"]
[WhiteElo "3082"]
[BlackElo "3187"]
[TimeControl "180+1"]
[EndTime "10:08:27 PDT"]
[Termination "MagnusCarlsen won by checkmate"]

1. e4 {[%clk 0:03:00.9]} 1... e6 {[%clk 0:02:59.7]} 2. d4 {[%clk 0:03:00.8]}
2... d5 {[%clk 0:03:00.3]} 3. Nc3 {[%clk 0:03:01.1]} 3... h6 {[%clk 0:02:58.3]}
4. Nf3 {[%clk 0:02:46.8]} 4... Nf6 {[%clk 0:02:57.1]} 5. exd5 {[%clk 0:02:45.3]}
5... exd5 {[%clk 0:02:57.6]} 6. Bd3 {[%clk 0:02:45.7]} 6... Bd6 {[%clk
0:02:56.7]} 7. O-O {[%clk 0:02:45.8]} 7... O-O {[%clk 0:02:57.4]} 8. Re1 {[%clk
0:02:33.4]} 8... Nc6 {[%clk 0:02:55.4]} 9. Nb5 {[%clk 0:02:30.2]} 9... Nb4
{[%clk 0:02:25.5]} 10. Nxd6 {[%clk 0:02:26.2]} 10... Qxd6 {[%clk 0:02:25.4]} 11.
Ne5 {[%clk 0:02:21.8]} 11... Nxd3 {[%clk 0:02:24.1]} 12. Qxd3 {[%clk 0:02:22.1]}
12... Re8 {[%clk 0:01:47.8]} 13. Bf4 {[%clk 0:02:16.5]} 13... Qe6 {[%clk
0:01:19.8]} 14. Nf3 {[%clk 0:01:50.5]} 14... Ne4 {[%clk 0:01:15]} 15. Bxc7
{[%clk 0:01:47.6]} 15... Qc6 {[%clk 0:01:14.2]} 16. Bf4 {[%clk 0:01:43.4]} 16...
Bf5 {[%clk 0:01:09.8]} 17. Qb3 {[%clk 0:01:43.1]} 17... f6 {[%clk 0:01:03.6]}
18. c3 {[%clk 0:01:23.1]} 18... g5 {[%clk 0:01:02.9]} 19. Be3 {[%clk 0:01:23.6]}
19... Kg7 {[%clk 0:00:58.8]} 20. Nd2 {[%clk 0:01:19.9]} 20... Nd6 {[%clk
0:00:59]} 21. f3 {[%clk 0:01:17]} 21... b5 {[%clk 0:00:52.3]} 22. Bf2 {[%clk
0:01:17.3]} 22... a5 {[%clk 0:00:45]} 23. a3 {[%clk 0:00:31.2]} 23... Bd3 {[%clk
0:00:41.2]} 24. h3 {[%clk 0:00:22.7]} 24... Nc4 {[%clk 0:00:33.3]} 25. Nxc4
{[%clk 0:00:20.5]} 25... bxc4 {[%clk 0:00:34.2]} 26. Qa2 {[%clk 0:00:13.6]}
26... Qa4 {[%clk 0:00:31.3]} 27. Rac1 {[%clk 0:00:12.6]} 27... Rab8 {[%clk
0:00:19.7]} 28. Bg3 {[%clk 0:00:10.6]} 28... Rb7 {[%clk 0:00:10.2]} 29. Qa1
{[%clk 0:00:07.2]} 29... Be2 {[%clk 0:00:08.2]} 30. Qb1 {[%clk 0:00:05.2]} 30...
Rbe7 {[%clk 0:00:08.4]} 31. Qc2 {[%clk 0:00:05.2]} 31... Qc6 {[%clk 0:00:07.7]}
32. Qd2 {[%clk 0:00:05.6]} 32... a4 {[%clk 0:00:06.1]} 33. Rc2 {[%clk
0:00:05.9]} 33... Qd7 {[%clk 0:00:05.4]} 34. Rcc1 {[%clk 0:00:05.8]} 34... Qf5
{[%clk 0:00:04.3]} 35. Kh2 {[%clk 0:00:05.8]} 35... h5 {[%clk 0:00:04.4]} 36.
Bd6 {[%clk 0:00:06.1]} 36... Re6 {[%clk 0:00:04.5]} 37. Bg3 {[%clk 0:00:06.2]}
37... h4 {[%clk 0:00:04.9]} 38. Bc7 {[%clk 0:00:06.6]} 38... Kg6 {[%clk
0:00:03.5]} 39. Ra1 {[%clk 0:00:05.3]} 39... Bd3 {[%clk 0:00:02.9]} 40. Rxe6
{[%clk 0:00:05.1]} 40... Qxe6 {[%clk 0:00:03.8]} 41. Rd1 {[%clk 0:00:05]} 41...
Qe2 {[%clk 0:00:03.7]} 42. Kg1 {[%clk 0:00:04.4]} 42... Qe6 {[%clk 0:00:03.4]}
43. Kh2 {[%clk 0:00:04.3]} 43... Qd7 {[%clk 0:00:03.6]} 44. Ba5 {[%clk
0:00:04.2]} 44... Qd6+ {[%clk 0:00:03.6]} 45. Kg1 {[%clk 0:00:04.7]} 45... Re2
{[%clk 0:00:03.8]} 46. Qc1 {[%clk 0:00:05.2]} 46... Qg3 {[%clk 0:00:03.9]} 47.
Rd2 {[%clk 0:00:04.2]} 47... Qxg2# {[%clk 0:00:03.9]} 0-1

[Event "Early-Titled-Tuesday-Blitz-June-18-2024"]
[Site "Chess.com"]
[Date "2024.06.18"]
[Round "11"]
[White "Mops_2004"]
[Black "KubaGepard"]
[Result "1-0"]
[WhiteElo "2813"]
[BlackElo "2655"]
[TimeControl "180+1"]
[EndTime "10:08:27 PDT"]
[Termination "Mops_2004 won by resignation"]

1. e4 {[%clk 0:03:00.9]} 1... e5 {[%clk 0:02:59]} 2. Nf3 {[%clk 0:03:00.6]} 2...
Nc6 {[%clk 0:02:59.6]} 3. Bc4 {[%clk 0:02:59.4]} 3... Bc5 {[%clk 0:02:58.9]} 4.
d3 {[%clk 0:02:59.6]} 4... Nf6 {[%clk 0:02:58.1]} 5. Nc3 {[%clk 0:03:00]} 5...
h6 {[%clk 0:02:57]} 6. h3 {[%clk 0:02:59.2]} 6... a6 {[%clk 0:02:56.9]} 7. Be3
{[%clk 0:02:55.8]} 7... Bxe3 {[%clk 0:02:56.3]} 8. fxe3 {[%clk 0:02:56.7]} 8...
d6 {[%clk 0:02:55.6]} 9. a4 {[%clk 0:02:56.6]} 9... Be6 {[%clk 0:02:53.5]} 10.
Nd2 {[%clk 0:02:56.5]} 10... Bxc4 {[%clk 0:02:44.3]} 11. Nxc4 {[%clk 0:02:56.1]}
11... d5 {[%clk 0:02:43]} 12. exd5 {[%clk 0:02:56.2]} 12... Nxd5 {[%clk
0:02:43.6]} 13. Qf3 {[%clk 0:02:56.3]} 13... Nxc3 {[%clk 0:02:41.8]} 14. bxc3
{[%clk 0:02:56.5]} 14... O-O {[%clk 0:02:41.5]} 15. e4 {[%clk 0:02:38.8]} 15...
b5 {[%clk 0:02:39.3]} 16. Ne3 {[%clk 0:02:35.4]} 16... b4 {[%clk 0:02:29.5]} 17.
cxb4 {[%clk 0:02:35.4]} 17... Nxb4 {[%clk 0:02:28.7]} 18. O-O {[%clk 0:02:28.8]}
18... Qg5 {[%clk 0:02:23.7]} 19. a5 {[%clk 0:02:22]} 19... Rab8 {[%clk
0:02:20.2]} 20. Ra4 {[%clk 0:02:09.6]} 20... Nc6 {[%clk 0:02:16]} 21. Rc4 {[%clk
0:01:58]} 21... Nd4 {[%clk 0:02:15.3]} 22. Qf2 {[%clk 0:01:56.8]} 22... Qd8
{[%clk 0:01:58.4]} 23. c3 {[%clk 0:01:21.2]} 23... Ne6 {[%clk 0:01:54.8]} 24.
Nd5 {[%clk 0:01:21.3]} 24... Rb5 {[%clk 0:01:45.9]} 25. Qg3 {[%clk 0:01:02.9]}
25... Rxa5 {[%clk 0:01:30.7]} 26. Qxe5 {[%clk 0:00:56.7]} 26... Ra2 {[%clk
0:01:28.3]} 27. d4 {[%clk 0:00:51.7]} 27... Re2 {[%clk 0:01:20.9]} 28. Rc6
{[%clk 0:00:32.9]} 28... Ng5 {[%clk 0:01:17.5]} 29. Rf5 {[%clk 0:00:14.5]} 29...
Rxe4 {[%clk 0:00:55.1]} 30. Qxc7 {[%clk 0:00:14.4]} 30... Qe8 {[%clk 0:00:54]}
31. Kh2 {[%clk 0:00:08.9]} 31... Re2 {[%clk 0:00:47.2]} 32. Rxh6 {[%clk
0:00:08.5]} 32... f6 {[%clk 0:00:26.6]} 33. Rh4 {[%clk 0:00:02.9]} 33... Qg6
{[%clk 0:00:23.4]} 34. Qf4 {[%clk 0:00:02.9]} 34... Nxh3 {[%clk 0:00:20.3]} 35.
Qg4 {[%clk 0:00:03.4]} 35... Qxg4 {[%clk 0:00:18.8]} 36. Rxg4 {[%clk 0:00:03.3]}
36... Ng5 {[%clk 0:00:19]} 37. c4 {[%clk 0:00:03.3]} 37... Rc8 {[%clk 0:00:18]}
38. c5 {[%clk 0:00:02.4]} 38... Kh7 {[%clk 0:00:16.2]} 39. Nb6 {[%clk
0:00:02.9]} 39... Rh8 {[%clk 0:00:15.3]} 40. Rh4+ {[%clk 0:00:02.9]} 40... Kg8
{[%clk 0:00:15.4]} 41. Rxh8+ {[%clk 0:00:03.6]} 41... Kxh8 {[%clk 0:00:16.3]}
42. c6 {[%clk 0:00:04.1]} 42... Rc2 {[%clk 0:00:16.1]} 43. d5 {[%clk 0:00:03.4]}
43... Kh7 {[%clk 0:00:15.5]} 44. Rf4 {[%clk 0:00:02.8]} 44... Kg6 {[%clk
0:00:14.8]} 45. Rc4 {[%clk 0:00:03.2]} 45... Re2 {[%clk 0:00:13.4]} 46. c7
{[%clk 0:00:03.5]} 46... Nf3+ {[%clk 0:00:12.6]} 47. Kg3 {[%clk 0:00:03.6]} 1-0

[Event "Early-Titled-Tuesday-Blitz-June-18-2024"]
[Site "Chess.com"]
[Date "2024.06.18"]
[Round "11"]
[White "only_strong_moves"]
[Black "Dr_Pepper18"]
[Result "1/2-1/2"]
[WhiteElo "2627"]
[BlackElo "2456"]
[TimeControl "180+1"]
[EndTime "10:08:28 PDT"]
[Termination "Game drawn by stalemate"]

1. Nc3 {[%clk 0:03:00.9]} 1... d5 {[%clk 0:02:58.6]} 2. e3 {[%clk 0:03:00.7]}
2... Nf6 {[%clk 0:02:57.3]} 3. a4 {[%clk 0:02:58.8]} 3... e5 {[%clk 0:02:56]} 4.
g3 {[%clk 0:02:58]} 4... Bd6 {[%clk 0:02:55.7]} 5. Bg2 {[%clk 0:02:58]} 5... c6
{[%clk 0:02:55.3]} 6. Nge2 {[%clk 0:02:57.5]} 6... O-O {[%clk 0:02:54.2]} 7. O-O
{[%clk 0:02:58.1]} 7... h5 {[%clk 0:02:50.8]} 8. h4 {[%clk 0:02:56.9]} 8... Bg4
{[%clk 0:02:49.8]} 9. f3 {[%clk 0:02:56.9]} 9... Be6 {[%clk 0:02:47.9]} 10. d4
{[%clk 0:02:57.5]} 10... Re8 {[%clk 0:02:42.2]} 11. dxe5 {[%clk 0:02:57.1]}
11... Bxe5 {[%clk 0:02:42]} 12. Nf4 {[%clk 0:02:56.1]} 12... Bf5 {[%clk
0:02:38.1]} 13. e4 {[%clk 0:02:53.1]} 13... dxe4 {[%clk 0:02:36.6]} 14. Qxd8
{[%clk 0:02:54]} 14... Rxd8 {[%clk 0:02:37.4]} 15. fxe4 {[%clk 0:02:54.6]} 15...
Bg4 {[%clk 0:02:32.5]} 16. Nd3 {[%clk 0:02:54.8]} 16... Bd4+ {[%clk 0:02:29.5]}
17. Kh2 {[%clk 0:02:54.3]} 17... Nbd7 {[%clk 0:02:28.7]} 18. Bg5 {[%clk
0:02:51.6]} 18... Re8 {[%clk 0:02:27.8]} 19. Rae1 {[%clk 0:02:50.9]} 19... Ne5
{[%clk 0:02:19.5]} 20. Nf4 {[%clk 0:02:46.7]} 20... Nh7 {[%clk 0:02:08.8]} 21.
Nfe2 {[%clk 0:02:42.9]} 21... Bb6 {[%clk 0:01:59.3]} 22. Bf4 {[%clk 0:02:40.4]}
22... Rad8 {[%clk 0:01:52.4]} 23. b4 {[%clk 0:02:26.3]} 23... a5 {[%clk
0:01:45.8]} 24. bxa5 {[%clk 0:02:24.4]} 24... Bxa5 {[%clk 0:01:46.7]} 25. Rb1
{[%clk 0:02:24.3]} 25... b6 {[%clk 0:01:40.1]} 26. Bxe5 {[%clk 0:02:10.8]} 26...
Rxe5 {[%clk 0:01:39.7]} 27. Rbd1 {[%clk 0:02:11.5]} 27... Rxd1 {[%clk
0:01:31.8]} 28. Rxd1 {[%clk 0:02:12.4]} 28... Nf6 {[%clk 0:01:27.6]} 29. Rd6
{[%clk 0:02:11.3]} 29... Rc5 {[%clk 0:01:22.3]} 30. e5 {[%clk 0:02:06.2]} 30...
Rxe5 {[%clk 0:01:22.5]} 31. Bf1 {[%clk 0:01:44.2]} 31... Bxc3 {[%clk 0:01:21.4]}
32. Nxc3 {[%clk 0:01:43.9]} 32... Rc5 {[%clk 0:01:22.1]} 33. Rd3 {[%clk
0:01:43]} 33... Bf5 {[%clk 0:01:22.1]} 34. Rf3 {[%clk 0:01:42.4]} 34... Bxc2
{[%clk 0:01:18.6]} 35. Be2 {[%clk 0:01:41.6]} 35... Ng4+ {[%clk 0:01:14.2]} 36.
Kg1 {[%clk 0:01:39.8]} 36... f5 {[%clk 0:01:12.5]} 37. Na2 {[%clk 0:01:35]}
37... Be4 {[%clk 0:01:11.4]} 38. Rb3 {[%clk 0:01:33]} 38... Rc2 {[%clk
0:01:09.2]} 39. Nc3 {[%clk 0:01:33.2]} 39... Rc1+ {[%clk 0:01:03.8]} 40. Nd1
{[%clk 0:01:28.3]} 40... Bc2 {[%clk 0:00:57]} 41. Rc3 {[%clk 0:01:27.3]} 41...
Rxd1+ {[%clk 0:00:40.2]} 42. Bxd1 {[%clk 0:01:25]} 42... Bxd1 {[%clk 0:00:41.1]}
43. Rxc6 {[%clk 0:01:25.3]} 43... Bxa4 {[%clk 0:00:40.7]} 44. Rxb6 {[%clk
0:01:25.7]} 44... Kh7 {[%clk 0:00:38.9]} 45. Kg2 {[%clk 0:01:26.2]} 45... g6
{[%clk 0:00:38]} 46. Kf3 {[%clk 0:01:26.7]} 46... Kg7 {[%clk 0:00:37.1]} 47. Kf4
{[%clk 0:01:27.2]} 47... Nf6 {[%clk 0:00:35.5]} 48. Rb7+ {[%clk 0:01:25.8]}
48... Kh6 {[%clk 0:00:35.1]} 49. Rb8 {[%clk 0:01:20.8]} 49... Ne4 {[%clk
0:00:33.6]} 50. Rb6 {[%clk 0:01:20.2]} 50... Be8 {[%clk 0:00:31]} 51. Ra6 {[%clk
0:01:20.2]} 51... Bf7 {[%clk 0:00:30.7]} 52. Ra7 {[%clk 0:01:20.4]} 52... Kg7
{[%clk 0:00:31.3]} 53. Ra6 {[%clk 0:01:19.9]} 53... Bc4 {[%clk 0:00:28.8]} 54.
Ra7+ {[%clk 0:01:20.8]} 54... Kf6 {[%clk 0:00:28.7]} 55. Rc7 {[%clk 0:01:20.9]}
55... Be6 {[%clk 0:00:28.5]} 56. Rc6 {[%clk 0:01:21.1]} 56... Nf2 {[%clk
0:00:25]} 57. Rc3 {[%clk 0:01:17.6]} 57... Nh3+ {[%clk 0:00:20.3]} 58. Ke3
{[%clk 0:01:18.1]} 58... Ke5 {[%clk 0:00:18.3]} 59. Rc5+ {[%clk 0:01:17.9]}
59... Bd5 {[%clk 0:00:18.4]} 60. Ra5 {[%clk 0:01:18.8]} 60... f4+ {[%clk
0:00:18]} 61. gxf4+ {[%clk 0:01:19.1]} 61... Nxf4 {[%clk 0:00:18.7]} 62. Ra6
{[%clk 0:01:18.9]} 62... Kf5 {[%clk 0:00:18.5]} 63. Ra5 {[%clk 0:01:18.7]} 63...
Ke5 {[%clk 0:00:16.7]} 64. Ra6 {[%clk 0:01:19.2]} 64... Ng2+ {[%clk 0:00:17]}
65. Kf2 {[%clk 0:01:18.4]} 65... Nxh4 {[%clk 0:00:17.9]} 66. Kg3 {[%clk
0:01:19.1]} 66... Nf5+ {[%clk 0:00:17]} 67. Kh3 {[%clk 0:01:19.7]} 67... g5
{[%clk 0:00:17.6]} 68. Rg6 {[%clk 0:01:19]} 68... g4+ {[%clk 0:00:17.7]} 69.
Rxg4 {[%clk 0:01:18.6]} 69... hxg4+ {[%clk 0:00:18.6]} 70. Kxg4 {[%clk
0:01:19.5]} 70... Be4 {[%clk 0:00:19.1]} 71. Kg5 {[%clk 0:01:19.9]} 71... Ne7
{[%clk 0:00:18.7]} 72. Kh6 {[%clk 0:01:20.8]} 72... Kf6 {[%clk 0:00:17.8]} 73.
Kh5 {[%clk 0:01:20.7]} 73... Ng6 {[%clk 0:00:17]} 74. Kh6 {[%clk 0:01:21.6]}
74... Nf8 {[%clk 0:00:14.4]} 75. Kh5 {[%clk 0:01:21.9]} 75... Ne6 {[%clk
0:00:10.5]} 76. Kh6 {[%clk 0:01:22.8]} 76... Bf5 {[%clk 0:00:09]} 77. Kh5 {[%clk
0:01:22.8]} 77... Be4 {[%clk 0:00:09.1]} 78. Kh6 {[%clk 0:01:23.7]} 78... Bf3
{[%clk 0:00:09.5]} 79. Kh7 {[%clk 0:01:24]} 79... Kf7 {[%clk 0:00:08.8]} 80. Kh8
{[%clk 0:01:24.9]} 80... Nf8 {[%clk 0:00:09]} 1/2-1/2

[Event "Early-Titled-Tuesday-Blitz-June-18-2024"]
[Site "Chess.com"]
[Date "2024.06.18"]
[Round "11"]
[White "Zhigalko_Sergei"]
[Black "Witik"]
[Result "0-1"]
[WhiteElo "2976"]
[BlackElo "2826"]
[TimeControl "180+1"]
[EndTime "10:08:31 PDT"]
[Termination "Witik won on time"]

1. e4 {[%clk 0:03:00.9]} 1... e5 {[%clk 0:02:58.7]} 2. Nf3 {[%clk 0:03:00.9]}
2... Nc6 {[%clk 0:02:59.3]} 3. Bb5 {[%clk 0:02:58.1]} 3... a6 {[%clk 0:02:59.1]}
4. Ba4 {[%clk 0:02:58.1]} 4... Nf6 {[%clk 0:02:59]} 5. O-O {[%clk 0:02:58]} 5...
b5 {[%clk 0:02:59.6]} 6. Bb3 {[%clk 0:02:57.9]} 6... Bc5 {[%clk 0:03:00.3]} 7.
a4 {[%clk 0:02:55.4]} 7... Rb8 {[%clk 0:02:59.4]} 8. axb5 {[%clk 0:02:53.6]}
8... axb5 {[%clk 0:02:59.6]} 9. Nc3 {[%clk 0:02:53.9]} 9... d6 {[%clk 0:02:48]}
10. Nd5 {[%clk 0:02:51.4]} 10... Nxd5 {[%clk 0:02:34.9]} 11. Bxd5 {[%clk
0:02:45.7]} 11... Ne7 {[%clk 0:02:06.9]} 12. Bb3 {[%clk 0:02:43.1]} 12... Bg4
{[%clk 0:01:55.5]} 13. Bxf7+ {[%clk 0:02:29.8]} 13... Kf8 {[%clk 0:01:41]} 14.
Bb3 {[%clk 0:01:59.7]} 14... Nc6 {[%clk 0:01:22.6]} 15. h3 {[%clk 0:01:54.6]}
15... Bh5 {[%clk 0:01:22.6]} 16. d3 {[%clk 0:00:56.4]} 16... Qf6 {[%clk
0:01:15.5]} 17. g4 {[%clk 0:00:54.8]} 17... Bf7 {[%clk 0:01:02.4]} 18. Bxf7
{[%clk 0:00:40.1]} 18... Kxf7 {[%clk 0:00:59.5]} 19. Bg5 {[%clk 0:00:31.5]}
19... Qe6 {[%clk 0:00:53.1]} 20. Be3 {[%clk 0:00:30.6]} 20... h6 {[%clk
0:00:45.7]} 21. Nh4 {[%clk 0:00:15.1]} 21... Rhf8 {[%clk 0:00:40.7]} 22. Ng2
{[%clk 0:00:09.6]} 22... Kg8 {[%clk 0:00:38.3]} 23. c3 {[%clk 0:00:09.9]} 23...
Ne7 {[%clk 0:00:28.1]} 24. Bxc5 {[%clk 0:00:07.9]} 24... dxc5 {[%clk 0:00:28.4]}
25. f4 {[%clk 0:00:07.4]} 25... Qd6 {[%clk 0:00:18.9]} 26. fxe5 {[%clk
0:00:04.9]} 26... Qxe5 {[%clk 0:00:19.4]} 27. Qe2 {[%clk 0:00:04.8]} 27... Ng6
{[%clk 0:00:18.3]} 28. Qe3 {[%clk 0:00:05.2]} 28... b4 {[%clk 0:00:13.1]} 29. d4
{[%clk 0:00:03.2]} 29... cxd4 {[%clk 0:00:13.6]} 30. cxd4 {[%clk 0:00:04.1]}
30... Qb5 {[%clk 0:00:12.9]} 31. Rf5 {[%clk 0:00:03.3]} 31... Qc4 {[%clk
0:00:10.4]} 32. Rc1 {[%clk 0:00:02.7]} 32... Qa2 {[%clk 0:00:07.2]} 33. Rxc7
{[%clk 0:00:03.2]} 33... Qxb2 {[%clk 0:00:05.2]} 34. Qg3 {[%clk 0:00:01.9]}
34... Qxd4+ {[%clk 0:00:04.5]} 35. Kh2 {[%clk 0:00:02.5]} 35... b3 {[%clk
0:00:03.4]} 36. Ra5 {[%clk 0:00:02.1]} 36... b2 {[%clk 0:00:02.8]} 37. Raa7
{[%clk 0:00:02.5]} 37... b1=Q {[%clk 0:00:02.7]} 38. e5 {[%clk 0:00:02.3]} 38...
Qxe5 {[%clk 0:00:02]} 39. Rxg7+ {[%clk 0:00:02.3]} 39... Qxg7 {[%clk 0:00:02.1]}
40. Ra6 {[%clk 0:00:02.2]} 40... Qbb7 {[%clk 0:00:01.8]} 41. Nf4 {[%clk
0:00:02.5]} 41... Qxa6 {[%clk 0:00:02]} 42. Nh5 {[%clk 0:00:02.7]} 42... Qe5
{[%clk 0:00:02.1]} 43. Nf6+ {[%clk 0:00:03.6]} 43... Qexf6 {[%clk 0:00:02.2]}
44. Qe5 {[%clk 0:00:04.3]} 44... Qxe5+ {[%clk 0:00:02.3]} 0-1

[Event "Early-Titled-Tuesday-Blitz-June-18-2024"]
[Site "Chess.com"]
[Date "2024.06.18"]
[Round "11"]
[White "jcibarra"]
[Black "Aygehovit1992"]
[Result "1-0"]
[WhiteElo "3004"]
[BlackElo "2810"]
[TimeControl "180+1"]
[EndTime "10:08:32 PDT"]
[Termination "jcibarra won on time"]

1. e4 {[%clk 0:02:49.9]} 1... c5 {[%clk 0:02:59.9]} 2. Nf3 {[%clk 0:02:48.3]}
2... e6 {[%clk 0:03:00.4]} 3. c4 {[%clk 0:02:46.2]} 3... Nc6 {[%clk 0:02:59.4]}
4. Nc3 {[%clk 0:02:45.4]} 4... Nf6 {[%clk 0:02:55.4]} 5. Be2 {[%clk 0:02:44.4]}
5... e5 {[%clk 0:02:50.5]} 6. d3 {[%clk 0:02:41.6]} 6... d6 {[%clk 0:02:49.8]}
7. a3 {[%clk 0:02:40.4]} 7... Be7 {[%clk 0:02:42.2]} 8. b4 {[%clk 0:02:38.3]}
8... cxb4 {[%clk 0:02:41.4]} 9. axb4 {[%clk 0:02:39.2]} 9... Nxb4 {[%clk
0:02:42.3]} 10. Ba3 {[%clk 0:02:39]} 10... Nc6 {[%clk 0:02:40.9]} 11. O-O {[%clk
0:02:38.9]} 11... O-O {[%clk 0:02:41.1]} 12. Nd5 {[%clk 0:02:36.5]} 12... Nxd5
{[%clk 0:02:39.1]} 13. cxd5 {[%clk 0:02:36.6]} 13... Nb8 {[%clk 0:02:22]} 14. d4
{[%clk 0:02:31.4]} 14... exd4 {[%clk 0:02:21.9]} 15. Nxd4 {[%clk 0:02:30.4]}
15... Nd7 {[%clk 0:02:18.8]} 16. f4 {[%clk 0:02:17.7]} 16... Nc5 {[%clk
0:02:13.3]} 17. Bf3 {[%clk 0:02:14.6]} 17... Bf6 {[%clk 0:02:08.6]} 18. e5
{[%clk 0:02:09.1]} 18... dxe5 {[%clk 0:02:08.5]} 19. fxe5 {[%clk 0:02:05.7]}
19... Bxe5 {[%clk 0:01:42.2]} 20. Bxc5 {[%clk 0:02:05.3]} 20... Re8 {[%clk
0:01:41.3]} 21. Qb3 {[%clk 0:01:31.7]} 21... Qh4 {[%clk 0:01:35.3]} 22. g3
{[%clk 0:01:08.2]} 22... Bxd4+ {[%clk 0:01:35.6]} 23. Kh1 {[%clk 0:01:07.7]}
23... Qf6 {[%clk 0:01:36]} 24. Qa4 {[%clk 0:01:01.2]} 24... Bxc5 {[%clk
0:00:57.5]} 25. Qxe8+ {[%clk 0:00:58.6]} 25... Bf8 {[%clk 0:00:58.1]} 26. Bh5
{[%clk 0:00:54.2]} 26... Bf5 {[%clk 0:00:49.5]} 27. Qxf7+ {[%clk 0:00:28.6]}
27... Qxf7 {[%clk 0:00:47.1]} 28. Bxf7+ {[%clk 0:00:29.5]} 28... Kxf7 {[%clk
0:00:48]} 29. Rxf5+ {[%clk 0:00:30.2]} 29... Kg6 {[%clk 0:00:45.6]} 30. Rf3
{[%clk 0:00:26.5]} 30... Bc5 {[%clk 0:00:43.7]} 31. Rb3 {[%clk 0:00:22.9]} 31...
b6 {[%clk 0:00:42.2]} 32. d6 {[%clk 0:00:20.6]} 32... a5 {[%clk 0:00:39.8]} 33.
d7 {[%clk 0:00:20.7]} 33... Rd8 {[%clk 0:00:39.9]} 34. Rd1 {[%clk 0:00:21]}
34... a4 {[%clk 0:00:32.9]} 35. Rf3 {[%clk 0:00:21.5]} 35... a3 {[%clk
0:00:31.8]} 36. Rff1 {[%clk 0:00:13]} 36... b5 {[%clk 0:00:23.5]} 37. Rd5 {[%clk
0:00:13.1]} 37... Be7 {[%clk 0:00:22.5]} 38. Rxb5 {[%clk 0:00:09]} 38... Rxd7
{[%clk 0:00:23]} 39. Ra5 {[%clk 0:00:09.9]} 39... h6 {[%clk 0:00:05.8]} 40. Kg2
{[%clk 0:00:10.1]} 40... Rd2+ {[%clk 0:00:04.7]} 41. Rf2 {[%clk 0:00:10.7]}
41... Rd7 {[%clk 0:00:04.1]} 42. Re2 {[%clk 0:00:09.5]} 42... Rb7 {[%clk
0:00:03.5]} 43. h4 {[%clk 0:00:09]} 43... Kh7 {[%clk 0:00:02.9]} 44. Ra6 {[%clk
0:00:08.5]} 44... Bb4 {[%clk 0:00:02.7]} 45. h5 {[%clk 0:00:06.6]} 45... Bc5
{[%clk 0:00:02.7]} 46. Re5 {[%clk 0:00:05.6]} 46... Bb4 {[%clk 0:00:02.1]} 47.
Rf5 {[%clk 0:00:05.5]} 1-0